[Event "Early-Titled-Tuesday-Blitz-January-23-2024"]
[Site "Chess.com"]
[Date "2024.01.23"]
[Round "1"]
[White "MITerryble"]
[Black "otrov-11"]
[Result "1-0"]
[WhiteElo "3001"]
[BlackElo "2519"]
[TimeControl "180+1"]
[EndTime "8:07:19 PST"]
[Termination "MITerryble won on time"]

1. e4 {[%clk 0:03:00.9]} 1... e6 {[%clk 0:02:59.7]} 2. d4 {[%clk 0:03:00.7]}
2... d5 {[%clk 0:03:00.4]} 3. exd5 {[%clk 0:03:01]} 3... exd5 {[%clk 0:03:01.3]}
4. Nf3 {[%clk 0:03:01.4]} 4... Bd6 {[%clk 0:03:01.2]} 5. c4 {[%clk 0:03:01.4]}
5... Nf6 {[%clk 0:03:00.4]} 6. Nc3 {[%clk 0:03:01.1]} 6... O-O {[%clk
0:03:00.6]} 7. c5 {[%clk 0:02:57.4]} 7... Re8+ {[%clk 0:02:59.2]} 8. Be2 {[%clk
0:02:57.4]} 8... Bf8 {[%clk 0:02:59.9]} 9. Bg5 {[%clk 0:02:57.2]} 9... c6 {[%clk
0:02:59.7]} 10. O-O {[%clk 0:02:57.4]} 10... Bf5 {[%clk 0:02:59.1]} 11. Qb3
{[%clk 0:02:50.6]} 11... b6 {[%clk 0:02:40]} 12. cxb6 {[%clk 0:02:43.6]} 12...
axb6 {[%clk 0:02:40.9]} 13. Rfe1 {[%clk 0:02:13]} 13... Nbd7 {[%clk 0:02:40.4]}
14. a4 {[%clk 0:02:11.7]} 14... Be7 {[%clk 0:02:32]} 15. Rac1 {[%clk 0:02:02.5]}
15... h6 {[%clk 0:02:22.7]} 16. Bf4 {[%clk 0:02:01.2]} 16... Be6 {[%clk
0:02:11.6]} 17. Bf1 {[%clk 0:01:55.9]} 17... c5 {[%clk 0:02:05.4]} 18. Nb5
{[%clk 0:01:55.8]} 18... Rc8 {[%clk 0:01:57.3]} 19. Na7 {[%clk 0:01:48.1]} 19...
Ra8 {[%clk 0:01:47.3]} 20. Nc6 {[%clk 0:01:48.3]} 20... Qc8 {[%clk 0:01:47.5]}
21. Nxe7+ {[%clk 0:01:48.8]} 21... Rxe7 {[%clk 0:01:48]} 22. Bb5 {[%clk
0:01:49.4]} 22... c4 {[%clk 0:01:43]} 23. Qb4 {[%clk 0:01:45.7]} 23... Re8
{[%clk 0:01:36.8]} 24. b3 {[%clk 0:01:45.9]} 24... Qb7 {[%clk 0:01:33.5]} 25. h3
{[%clk 0:01:45.2]} 25... Rac8 {[%clk 0:01:31]} 26. Ne5 {[%clk 0:01:43]} 26...
Nxe5 {[%clk 0:01:29.5]} 27. Bxe5 {[%clk 0:01:37.6]} 27... Nd7 {[%clk 0:01:19.2]}
28. Bf4 {[%clk 0:01:35.7]} 28... Red8 {[%clk 0:01:02.6]} 29. Rc3 {[%clk
0:01:32.9]} 29... Nf6 {[%clk 0:00:59.7]} 30. Rce3 {[%clk 0:01:22.4]} 30... cxb3
{[%clk 0:00:46]} 31. Rxb3 {[%clk 0:01:16.9]} 31... Ne4 {[%clk 0:00:40.6]} 32. f3
{[%clk 0:01:17]} 32... Nf6 {[%clk 0:00:39.9]} 33. Bf1 {[%clk 0:01:16.8]} 33...
Rc6 {[%clk 0:00:38.1]} 34. a5 {[%clk 0:01:17.1]} 34... Nd7 {[%clk 0:00:36.5]}
35. a6 {[%clk 0:01:11.2]} 35... Qa7 {[%clk 0:00:32]} 36. Bb5 {[%clk 0:01:08.9]}
36... Rcc8 {[%clk 0:00:32.5]} 37. Rc3 {[%clk 0:01:08.9]} 37... Nf6 {[%clk
0:00:28.9]} 38. Rec1 {[%clk 0:01:08.1]} 38... Rxc3 {[%clk 0:00:20.5]} 39. Rxc3
{[%clk 0:01:09]} 39... Bd7 {[%clk 0:00:19.4]} 40. Rc7 {[%clk 0:01:01.1]} 40...
Qa8 {[%clk 0:00:19.8]} 41. Bd3 {[%clk 0:00:55.7]} 41... b5 {[%clk 0:00:13]} 42.
Qa5 {[%clk 0:00:53.7]} 42... Be8 {[%clk 0:00:09]} 43. a7 {[%clk 0:00:40.2]}
43... Bd7 {[%clk 0:00:08.7]} 44. Qb6 {[%clk 0:00:39.6]} 44... Ne8 {[%clk
0:00:06.7]} 45. Rb7 {[%clk 0:00:39.2]} 45... Rc8 {[%clk 0:00:02.1]} 46. Rb8
{[%clk 0:00:39.1]} 1-0

[Event "Early-Titled-Tuesday-Blitz-January-23-2024"]
[Site "Chess.com"]
[Date "2024.01.23"]
[Round "1"]
[White "FairChess_on_YouTube"]
[Black "FM_VS99"]
[Result "1-0"]
[WhiteElo "3110"]
[BlackElo "2535"]
[TimeControl "180+1"]
[EndTime "8:07:20 PST"]
[Termination "FairChess_on_YouTube won by resignation"]

1. d4 {[%clk 0:03:00.9]} 1... Nf6 {[%clk 0:03:00.1]} 2. c4 {[%clk 0:03:00.9]}
2... c5 {[%clk 0:03:00.2]} 3. Nf3 {[%clk 0:02:57.6]} 3... cxd4 {[%clk
0:02:59.4]} 4. Nxd4 {[%clk 0:02:58.5]} 4... g6 {[%clk 0:02:59.8]} 5. Nc3 {[%clk
0:02:58]} 5... Bg7 {[%clk 0:03:00.3]} 6. e4 {[%clk 0:02:58.2]} 6... d6 {[%clk
0:03:00.3]} 7. Be2 {[%clk 0:02:57.5]} 7... O-O {[%clk 0:03:00.9]} 8. O-O {[%clk
0:02:56.8]} 8... Nc6 {[%clk 0:03:01.5]} 9. Be3 {[%clk 0:02:57.2]} 9... Bd7
{[%clk 0:03:01.9]} 10. Qd2 {[%clk 0:02:55.9]} 10... Nxd4 {[%clk 0:02:59.8]} 11.
Bxd4 {[%clk 0:02:55.7]} 11... Bc6 {[%clk 0:03:00.3]} 12. f3 {[%clk 0:02:56]}
12... a5 {[%clk 0:03:00.1]} 13. b3 {[%clk 0:02:54.7]} 13... Nd7 {[%clk 0:03:00]}
14. Be3 {[%clk 0:02:53.4]} 14... Nc5 {[%clk 0:02:59.5]} 15. Rac1 {[%clk
0:02:52.7]} 15... e6 {[%clk 0:02:59]} 16. Rfd1 {[%clk 0:02:50.6]} 16... Be5
{[%clk 0:02:54.6]} 17. Bf4 {[%clk 0:02:39.5]} 17... Qe7 {[%clk 0:02:31.4]} 18.
Bxe5 {[%clk 0:02:36]} 18... dxe5 {[%clk 0:02:30.4]} 19. Qd6 {[%clk 0:02:35.9]}
19... Qxd6 {[%clk 0:02:25.1]} 20. Rxd6 {[%clk 0:02:36.8]} 20... Rfd8 {[%clk
0:02:24.9]} 21. Rcd1 {[%clk 0:02:27.6]} 21... Rxd6 {[%clk 0:02:21.4]} 22. Rxd6
{[%clk 0:02:27.4]} 22... Kf8 {[%clk 0:02:21.9]} 23. Kf2 {[%clk 0:02:27.3]} 23...
Ke7 {[%clk 0:02:21.6]} 24. Rd1 {[%clk 0:02:24.1]} 24... f5 {[%clk 0:02:20.4]}
25. Ke3 {[%clk 0:02:24.1]} 25... fxe4 {[%clk 0:02:02.5]} 26. fxe4 {[%clk
0:02:16.4]} 26... Ra6 {[%clk 0:01:28.9]} 27. Bd3 {[%clk 0:02:07.7]} 27... Rb6
{[%clk 0:01:22.2]} 28. Bc2 {[%clk 0:02:07.6]} 28... a4 {[%clk 0:00:46.4]} 29.
Rb1 {[%clk 0:02:06.7]} 29... axb3 {[%clk 0:00:40.4]} 30. axb3 {[%clk 0:02:06.3]}
30... Ra6 {[%clk 0:00:26.5]} 31. b4 {[%clk 0:01:59.5]} 31... Ra3 {[%clk
0:00:23.5]} 32. Kd2 {[%clk 0:01:59.4]} 32... Na4 {[%clk 0:00:13.2]} 33. Bxa4
{[%clk 0:01:56.9]} 33... Bxa4 {[%clk 0:00:14.1]} 34. c5 {[%clk 0:01:48.7]} 34...
Rb3 {[%clk 0:00:08.3]} 35. Rxb3 {[%clk 0:01:23.4]} 35... Bxb3 {[%clk 0:00:09.2]}
36. b5 {[%clk 0:01:20.1]} 36... Bc4 {[%clk 0:00:09.1]} 37. Kc2 {[%clk
0:01:14.1]} 37... Kd7 {[%clk 0:00:09.2]} 38. Kb2 {[%clk 0:01:13.6]} 38... b6
{[%clk 0:00:08.1]} 39. cxb6 {[%clk 0:01:09.6]} 39... Kc8 {[%clk 0:00:07.8]} 40.
Ka3 {[%clk 0:01:09.2]} 40... Kb7 {[%clk 0:00:07.9]} 41. Kb4 {[%clk 0:01:09.8]}
41... Bf1 {[%clk 0:00:08.2]} 42. g3 {[%clk 0:01:10.1]} 42... Kxb6 {[%clk
0:00:08.4]} 43. Na4+ {[%clk 0:01:10.7]} 43... Kc7 {[%clk 0:00:07.1]} 44. Kc5
{[%clk 0:01:09.6]} 44... h5 {[%clk 0:00:04.2]} 45. h4 {[%clk 0:01:08.2]} 45...
Bd3 {[%clk 0:00:03.4]} 46. b6+ {[%clk 0:01:04.9]} 46... Kb7 {[%clk 0:00:02.4]}
47. Kd6 {[%clk 0:01:05.5]} 47... Bxe4 {[%clk 0:00:02.3]} 48. Nc5+ {[%clk
0:01:05.3]} 48... Kxb6 {[%clk 0:00:01.6]} 49. Nxe4 {[%clk 0:01:06.2]} 1-0

[Event "Early-Titled-Tuesday-Blitz-January-23-2024"]
[Site "Chess.com"]
[Date "2024.01.23"]
[Round "1"]
[White "Jojo_898"]
[Black "maciek_92"]
[Result "0-1"]
[WhiteElo "2451"]
[BlackElo "2824"]
[TimeControl "180+1"]
[EndTime "8:07:20 PST"]
[Termination "maciek_92 won by resignation"]

1. e4 {[%clk 0:03:00.9]} 1... c5 {[%clk 0:03:00.3]} 2. Nf3 {[%clk 0:02:59.6]}
2... Nc6 {[%clk 0:02:58.1]} 3. c3 {[%clk 0:02:59.3]} 3... Nf6 {[%clk 0:02:56.6]}
4. Bd3 {[%clk 0:02:55.2]} 4... e5 {[%clk 0:02:55.8]} 5. O-O {[%clk 0:02:54.5]}
5... Be7 {[%clk 0:02:55.5]} 6. Bc2 {[%clk 0:02:53.7]} 6... d6 {[%clk 0:02:52.2]}
7. h3 {[%clk 0:02:51.3]} 7... O-O {[%clk 0:02:52.1]} 8. d4 {[%clk 0:02:51.9]}
8... Qc7 {[%clk 0:02:48.7]} 9. Be3 {[%clk 0:02:46.8]} 9... Re8 {[%clk
0:02:44.5]} 10. Nbd2 {[%clk 0:02:45.3]} 10... Bf8 {[%clk 0:02:44]} 11. Rc1
{[%clk 0:02:37.7]} 11... h6 {[%clk 0:02:30.8]} 12. Bd3 {[%clk 0:02:26]} 12... b6
{[%clk 0:02:26.2]} 13. a3 {[%clk 0:02:19.9]} 13... Ne7 {[%clk 0:02:23.2]} 14. b4
{[%clk 0:02:17.4]} 14... Ng6 {[%clk 0:02:21.2]} 15. Nc4 {[%clk 0:02:06.9]} 15...
exd4 {[%clk 0:02:09.2]} 16. cxd4 {[%clk 0:02:05.7]} 16... Nxe4 {[%clk
0:02:08.7]} 17. Qc2 {[%clk 0:01:56.1]} 17... Bb7 {[%clk 0:01:55.9]} 18. bxc5
{[%clk 0:01:50]} 18... dxc5 {[%clk 0:01:55.4]} 19. Rfe1 {[%clk 0:01:42.2]} 19...
f5 {[%clk 0:00:51.1]} 20. dxc5 {[%clk 0:01:32.5]} 20... bxc5 {[%clk 0:00:48.3]}
21. Nfd2 {[%clk 0:01:20.1]} 21... Nh4 {[%clk 0:00:38.6]} 22. Nf1 {[%clk
0:00:51.5]} 22... f4 {[%clk 0:00:31.2]} 23. Bd2 {[%clk 0:00:50.1]} 23... Ng5
{[%clk 0:00:26.9]} 24. f3 {[%clk 0:00:25.8]} 24... Qd7 {[%clk 0:00:24.6]} 25.
Ne5 {[%clk 0:00:14.8]} 25... Rxe5 {[%clk 0:00:23.7]} 26. Rxe5 {[%clk 0:00:14.2]}
26... Ngxf3+ {[%clk 0:00:24.2]} 27. Kh1 {[%clk 0:00:13.5]} 27... Nxe5 {[%clk
0:00:20.5]} 28. Bc4+ {[%clk 0:00:11.5]} 28... Kh8 {[%clk 0:00:20.1]} 29. Kh2
{[%clk 0:00:10.6]} 29... Bxg2 {[%clk 0:00:18.1]} 30. Bxf4 {[%clk 0:00:09]} 30...
Nef3+ {[%clk 0:00:18.2]} 31. Kg3 {[%clk 0:00:08.9]} 31... Qxh3+ {[%clk
0:00:18.6]} 32. Kf2 {[%clk 0:00:08.2]} 32... Bxf1 {[%clk 0:00:18.6]} 33. Rxf1
{[%clk 0:00:07.9]} 33... Qg2+ {[%clk 0:00:18.2]} 34. Ke3 {[%clk 0:00:08.6]}
34... Qxc2 {[%clk 0:00:19.1]} 0-1

[Event "Early-Titled-Tuesday-Blitz-January-23-2024"]
[Site "Chess.com"]
[Date "2024.01.23"]
[Round "1"]
[White "Capablanca_Oujda_2021"]
[Black "Zurability"]
[Result "0-1"]
[WhiteElo "2429"]
[BlackElo "2762"]
[TimeControl "180+1"]
[EndTime "8:07:21 PST"]
[Termination "Zurability won by resignation"]

1. e4 {[%clk 0:02:59]} 1... e5 {[%clk 0:02:56.6]} 2. Nf3 {[%clk 0:02:58.8]} 2...
Nc6 {[%clk 0:02:56.8]} 3. Bc4 {[%clk 0:02:59]} 3... Nf6 {[%clk 0:02:56.8]} 4.
Ng5 {[%clk 0:02:58.9]} 4... d5 {[%clk 0:02:56.5]} 5. exd5 {[%clk 0:02:59.8]}
5... Na5 {[%clk 0:02:56.5]} 6. Bb5+ {[%clk 0:03:00.2]} 6... c6 {[%clk
0:02:56.6]} 7. dxc6 {[%clk 0:03:01.1]} 7... bxc6 {[%clk 0:02:57.4]} 8. Qf3
{[%clk 0:03:01.6]} 8... Be7 {[%clk 0:02:52.6]} 9. Ba4 {[%clk 0:02:58.6]} 9...
O-O {[%clk 0:02:49.2]} 10. Nc3 {[%clk 0:02:58.5]} 10... Nd5 {[%clk 0:02:39.5]}
11. Nge4 {[%clk 0:02:57.8]} 11... f5 {[%clk 0:02:37.6]} 12. Ng3 {[%clk
0:02:57.6]} 12... e4 {[%clk 0:02:29.1]} 13. Qe2 {[%clk 0:02:57.2]} 13... Nf4
{[%clk 0:02:24.4]} 14. Qf1 {[%clk 0:02:56.5]} 14... Qd6 {[%clk 0:01:56.2]} 15.
d3 {[%clk 0:02:40.7]} 15... exd3 {[%clk 0:01:51.1]} 16. Bxf4 {[%clk 0:02:40.2]}
16... Qxf4 {[%clk 0:01:48]} 17. Qxd3 {[%clk 0:02:40.2]} 17... Qh4 {[%clk
0:01:13.8]} 18. O-O-O {[%clk 0:02:29.4]} 18... Rb8 {[%clk 0:01:07]} 19. Bb3+
{[%clk 0:02:11.4]} 19... Nxb3+ {[%clk 0:01:01.5]} 20. axb3 {[%clk 0:02:12.3]}
20... Kh8 {[%clk 0:00:54.3]} 21. Rhe1 {[%clk 0:02:10.5]} 21... Bf6 {[%clk
0:00:54]} 22. Qd6 {[%clk 0:02:07.5]} 22... Ba6 {[%clk 0:00:48.8]} 23. Nxf5
{[%clk 0:02:00.3]} 23... Qxf2 {[%clk 0:00:43.8]} 24. Ng3 {[%clk 0:01:37.6]}
24... Qxg2 {[%clk 0:00:39.2]} 25. Nge4 {[%clk 0:01:34.6]} 25... Bh4 {[%clk
0:00:27.7]} 26. Rg1 {[%clk 0:01:33.8]} 26... Qf3 {[%clk 0:00:26.8]} 27. Qxc6
{[%clk 0:01:30.6]} 27... Bb7 {[%clk 0:00:25.1]} 28. Qc4 {[%clk 0:01:28.5]} 28...
Rbc8 {[%clk 0:00:22.7]} 29. Nc5 {[%clk 0:01:28.5]} 29... Bf2 {[%clk 0:00:19.8]}
30. b4 {[%clk 0:01:10]} 30... Bxg1 {[%clk 0:00:18.9]} 31. Rxg1 {[%clk
0:01:10.9]} 31... Qe3+ {[%clk 0:00:19.3]} 32. Kb1 {[%clk 0:01:11.2]} 32... Qxg1+
{[%clk 0:00:19.6]} 33. Ka2 {[%clk 0:01:11.9]} 33... Rxc5 {[%clk 0:00:18.7]} 34.
bxc5 {[%clk 0:01:11.6]} 34... Qg2 {[%clk 0:00:19.2]} 35. Nb5 {[%clk 0:01:09.4]}
35... Qd5 {[%clk 0:00:18.7]} 36. Qxd5 {[%clk 0:01:06.2]} 36... Bxd5+ {[%clk
0:00:19.6]} 37. b3 {[%clk 0:01:06.3]} 37... Rc8 {[%clk 0:00:18.3]} 38. c4 {[%clk
0:01:06.6]} 38... Be6 {[%clk 0:00:16.2]} 39. Nd4 {[%clk 0:01:06]} 39... Bf7
{[%clk 0:00:14.6]} 40. c6 {[%clk 0:01:05.3]} 40... Be8 {[%clk 0:00:15.2]} 41. b4
{[%clk 0:01:01]} 41... Bxc6 {[%clk 0:00:15.6]} 42. b5 {[%clk 0:01:01.4]} 42...
Be4 {[%clk 0:00:15.1]} 43. Kb3 {[%clk 0:01:02.3]} 43... g5 {[%clk 0:00:13.4]}
44. Kb4 {[%clk 0:01:01.8]} 44... g4 {[%clk 0:00:13.8]} 45. c5 {[%clk 0:01:01.4]}
45... h5 {[%clk 0:00:14.3]} 46. Ne6 {[%clk 0:01:00.1]} 46... h4 {[%clk
0:00:13.1]} 47. Ng5 {[%clk 0:00:58.8]} 47... Bg6 {[%clk 0:00:09.6]} 48. Ne6
{[%clk 0:00:57.1]} 48... g3 {[%clk 0:00:09.3]} 49. hxg3 {[%clk 0:00:57.4]} 49...
hxg3 {[%clk 0:00:10.2]} 50. Nf4 {[%clk 0:00:58]} 50... Be4 {[%clk 0:00:10.9]}
51. c6 {[%clk 0:00:57.7]} 51... g2 {[%clk 0:00:11.3]} 52. Nxg2 {[%clk
0:00:58.3]} 52... Bxg2 {[%clk 0:00:11.4]} 53. Kc5 {[%clk 0:00:59.2]} 53... Kg7
{[%clk 0:00:09.9]} 54. Kd6 {[%clk 0:00:59.3]} 54... Kf7 {[%clk 0:00:09.6]} 55.
Kd7 {[%clk 0:00:59.5]} 55... Bh3+ {[%clk 0:00:09.8]} 56. Kd6 {[%clk 0:00:59.9]}
56... Ke8 {[%clk 0:00:10.4]} 0-1

[Event "Early-Titled-Tuesday-Blitz-January-23-2024"]
[Site "Chess.com"]
[Date "2024.01.23"]
[Round "1"]
[White "Zgorl"]
[Black "TigrVShlyape"]
[Result "0-1"]
[WhiteElo "2506"]
[BlackElo "2937"]
[TimeControl "180+1"]
[EndTime "8:07:22 PST"]
[Termination "TigrVShlyape won by resignation"]

1. Nf3 {[%clk 0:03:00.9]} 1... Nf6 {[%clk 0:02:58.9]} 2. g3 {[%clk 0:03:00.8]}
2... d5 {[%clk 0:02:58.7]} 3. Bg2 {[%clk 0:03:00.6]} 3... c6 {[%clk 0:02:59.3]}
4. c4 {[%clk 0:03:00.5]} 4... g6 {[%clk 0:02:55.5]} 5. b3 {[%clk 0:02:59.7]}
5... Bg7 {[%clk 0:02:52.4]} 6. Bb2 {[%clk 0:02:53.1]} 6... O-O {[%clk
0:02:52.2]} 7. O-O {[%clk 0:02:50.7]} 7... a5 {[%clk 0:02:51.5]} 8. Nc3 {[%clk
0:02:49.7]} 8... Bg4 {[%clk 0:02:42.3]} 9. d4 {[%clk 0:02:43]} 9... Bxf3 {[%clk
0:02:40.5]} 10. Bxf3 {[%clk 0:02:42.5]} 10... e6 {[%clk 0:02:41.1]} 11. Qd2
{[%clk 0:02:36.8]} 11... Nbd7 {[%clk 0:02:39.4]} 12. Rad1 {[%clk 0:02:34.7]}
12... Qb6 {[%clk 0:02:36.9]} 13. Ba3 {[%clk 0:02:19.6]} 13... Rfd8 {[%clk
0:02:35.4]} 14. Bd6 {[%clk 0:02:17.4]} 14... Bf8 {[%clk 0:02:19.4]} 15. Bxf8
{[%clk 0:02:15.2]} 15... Rxf8 {[%clk 0:02:18.3]} 16. e4 {[%clk 0:02:13.4]} 16...
dxe4 {[%clk 0:02:17.9]} 17. Nxe4 {[%clk 0:02:13.5]} 17... Nxe4 {[%clk
0:02:17.8]} 18. Bxe4 {[%clk 0:02:14.4]} 18... Rfd8 {[%clk 0:02:12.6]} 19. h4
{[%clk 0:02:05.1]} 19... Qb4 {[%clk 0:02:09.7]} 20. Qf4 {[%clk 0:01:55.3]} 20...
a4 {[%clk 0:01:55.3]} 21. Rd3 {[%clk 0:01:44.5]} 21... axb3 {[%clk 0:01:53.6]}
22. axb3 {[%clk 0:01:45.4]} 22... Qe7 {[%clk 0:01:48.5]} 23. h5 {[%clk 0:01:41]}
23... Qf6 {[%clk 0:01:46]} 24. Qe3 {[%clk 0:01:38.5]} 24... gxh5 {[%clk
0:01:24.5]} 25. Kg2 {[%clk 0:01:33.6]} 25... Qg7 {[%clk 0:01:23.5]} 26. Rh1
{[%clk 0:01:32.3]} 26... Nf6 {[%clk 0:01:23.6]} 27. Bf3 {[%clk 0:01:32.6]} 27...
Qg6 {[%clk 0:01:21.6]} 28. Rdd1 {[%clk 0:01:27.3]} 28... Ra2 {[%clk 0:01:19.1]}
29. Rh4 {[%clk 0:01:06.2]} 29... h6 {[%clk 0:01:08.8]} 30. Qe5 {[%clk
0:00:53.6]} 30... Qg5 {[%clk 0:01:05.7]} 31. Rdh1 {[%clk 0:00:45.4]} 31... Rd2
{[%clk 0:00:54.4]} 32. Qc7 {[%clk 0:00:37.3]} 32... Rd7 {[%clk 0:00:48.6]} 33.
Qb8+ {[%clk 0:00:35.2]} 33... Kg7 {[%clk 0:00:48.5]} 34. Bxh5 {[%clk 0:00:26.2]}
34... R2xd4 {[%clk 0:00:33.9]} 35. Bf3 {[%clk 0:00:16.8]} 35... Rxh4 {[%clk
0:00:28.5]} 36. Rxh4 {[%clk 0:00:17.7]} 36... e5 {[%clk 0:00:27.3]} 37. Qc8
{[%clk 0:00:10.3]} 37... Qd2 {[%clk 0:00:19.9]} 38. Bg4 {[%clk 0:00:07.1]} 38...
Rd4 {[%clk 0:00:17.8]} 39. Qf5 {[%clk 0:00:05.9]} 39... Qg5 {[%clk 0:00:17.2]}
40. Qf3 {[%clk 0:00:04.9]} 40... Rxg4 {[%clk 0:00:16.9]} 0-1

[Event "Early-Titled-Tuesday-Blitz-January-23-2024"]
[Site "Chess.com"]
[Date "2024.01.23"]
[Round "1"]
[White "Kotofeyca"]
[Black "M1711"]
[Result "0-1"]
[WhiteElo "2342"]
[BlackElo "2652"]
[TimeControl "180+1"]
[EndTime "8:07:22 PST"]
[Termination "M1711 won on time"]

1. d4 {[%clk 0:03:00.9]} 1... g6 {[%clk 0:03:00.1]} 2. c4 {[%clk 0:03:00.6]}
2... Bg7 {[%clk 0:03:00.2]} 3. Nc3 {[%clk 0:03:01.2]} 3... c5 {[%clk 0:02:59.8]}
4. Nf3 {[%clk 0:03:00.6]} 4... cxd4 {[%clk 0:02:57.4]} 5. Nxd4 {[%clk
0:03:01.5]} 5... Nc6 {[%clk 0:02:57.9]} 6. e3 {[%clk 0:03:01.1]} 6... Nf6 {[%clk
0:02:50.8]} 7. Be2 {[%clk 0:03:01.1]} 7... Nxd4 {[%clk 0:02:49.2]} 8. Qxd4
{[%clk 0:02:47.5]} 8... O-O {[%clk 0:02:49.1]} 9. O-O {[%clk 0:02:46.8]} 9... d6
{[%clk 0:02:45.6]} 10. Rd1 {[%clk 0:02:40.7]} 10... Be6 {[%clk 0:02:45.2]} 11.
Qh4 {[%clk 0:02:22.1]} 11... Rc8 {[%clk 0:02:43.2]} 12. Bd2 {[%clk 0:02:05.5]}
12... h6 {[%clk 0:02:31.4]} 13. Rac1 {[%clk 0:01:36.5]} 13... g5 {[%clk
0:02:27.7]} 14. Qd4 {[%clk 0:01:36.2]} 14... b6 {[%clk 0:02:07.5]} 15. b3 {[%clk
0:01:31.2]} 15... Qc7 {[%clk 0:01:44]} 16. Nb5 {[%clk 0:01:21.7]} 16... Qd7
{[%clk 0:01:40.9]} 17. Qd3 {[%clk 0:01:21.7]} 17... Bf5 {[%clk 0:01:33.8]} 18.
Qc3 {[%clk 0:01:08.4]} 18... Nd5 {[%clk 0:01:27.5]} 19. cxd5 {[%clk 0:00:29.7]}
19... Bxc3 {[%clk 0:01:24.1]} 20. Bxc3 {[%clk 0:00:30.6]} 20... Bg6 {[%clk
0:01:13.6]} 21. Nd4 {[%clk 0:00:30.4]} 21... e6 {[%clk 0:01:04.9]} 22. Bb5
{[%clk 0:00:28.9]} 22... Qe7 {[%clk 0:00:56.1]} 23. Nc6 {[%clk 0:00:28.6]} 23...
Qb7 {[%clk 0:00:52.4]} 24. Bf6 {[%clk 0:00:22.2]} 24... Rc7 {[%clk 0:00:42.9]}
25. Nb4 {[%clk 0:00:15.6]} 25... exd5 {[%clk 0:00:35.6]} 26. Bc6 {[%clk
0:00:12.8]} 26... Rxc6 {[%clk 0:00:23.1]} 27. Nxc6 {[%clk 0:00:12.8]} 27... Re8
{[%clk 0:00:21.7]} 28. Rxd5 {[%clk 0:00:09.8]} 28... Be4 {[%clk 0:00:19.5]} 29.
Rxd6 {[%clk 0:00:07.5]} 29... Kh7 {[%clk 0:00:15.6]} 30. f3 {[%clk 0:00:07.2]}
30... Bxc6 {[%clk 0:00:12.6]} 31. Rdxc6 {[%clk 0:00:06.9]} 31... Rxe3 {[%clk
0:00:12.2]} 32. Rc7 {[%clk 0:00:06.4]} 32... Qd5 {[%clk 0:00:12]} 0-1

[Event "Early-Titled-Tuesday-Blitz-January-23-2024"]
[Site "Chess.com"]
[Date "2024.01.23"]
[Round "1"]
[White "AradNazari"]
[Black "carloseduar100"]
[Result "1-0"]
[WhiteElo "2621"]
[BlackElo "2286"]
[TimeControl "180+1"]
[EndTime "8:07:23 PST"]
[Termination "AradNazari won by resignation"]

1. b4 {[%clk 0:02:34]} 1... e6 {[%clk 0:02:57.9]} 2. a3 {[%clk 0:02:33.1]} 2...
d5 {[%clk 0:02:58.8]} 3. Bb2 {[%clk 0:02:32.9]} 3... Nf6 {[%clk 0:02:59.7]} 4.
d3 {[%clk 0:02:31.1]} 4... Bd6 {[%clk 0:02:58.8]} 5. g3 {[%clk 0:02:31.1]} 5...
O-O {[%clk 0:02:58.5]} 6. Bg2 {[%clk 0:02:31.5]} 6... Nbd7 {[%clk 0:02:59]} 7.
Nd2 {[%clk 0:02:31.7]} 7... c6 {[%clk 0:02:59.3]} 8. e4 {[%clk 0:02:31.4]} 8...
e5 {[%clk 0:02:58.2]} 9. Ngf3 {[%clk 0:02:31.5]} 9... Re8 {[%clk 0:02:57.5]} 10.
O-O {[%clk 0:02:30.6]} 10... a6 {[%clk 0:02:55.5]} 11. c4 {[%clk 0:02:30.7]}
11... Nf8 {[%clk 0:02:47.5]} 12. Qb3 {[%clk 0:02:29.3]} 12... Be6 {[%clk
0:02:33]} 13. Ng5 {[%clk 0:02:28.4]} 13... dxc4 {[%clk 0:02:32]} 14. Nxc4 {[%clk
0:02:27.5]} 14... Bc7 {[%clk 0:02:25.4]} 15. Nxe6 {[%clk 0:02:25.6]} 15... Rxe6
{[%clk 0:02:13.9]} 16. f4 {[%clk 0:02:04.6]} 16... exf4 {[%clk 0:02:09.5]} 17.
gxf4 {[%clk 0:02:05.5]} 17... Ng4 {[%clk 0:02:07.4]} 18. d4 {[%clk 0:01:49.7]}
18... Qb8 {[%clk 0:01:44.9]} 19. e5 {[%clk 0:01:39.5]} 19... b5 {[%clk
0:01:39.1]} 20. Nd2 {[%clk 0:01:29.9]} 20... a5 {[%clk 0:01:39.3]} 21. f5 {[%clk
0:01:24.4]} 21... Rh6 {[%clk 0:01:25.7]} 22. h3 {[%clk 0:01:13.9]} 22... Bxe5
{[%clk 0:01:25.8]} 23. hxg4 {[%clk 0:00:53.7]} 23... Bh2+ {[%clk 0:01:21.3]} 24.
Kf2 {[%clk 0:00:53.9]} 24... Qf4+ {[%clk 0:01:20]} 25. Ke2 {[%clk 0:00:51.4]}
25... Qxg4+ {[%clk 0:01:10.2]} 26. Qf3 {[%clk 0:00:49.3]} 26... Re8+ {[%clk
0:01:09.4]} 27. Kd3 {[%clk 0:00:43.9]} 27... Qg5 {[%clk 0:00:54.8]} 28. Rh1
{[%clk 0:00:37.8]} 28... Bf4 {[%clk 0:00:51.8]} 29. Ne4 {[%clk 0:00:37.7]} 29...
Rxh1 {[%clk 0:00:34.6]} 30. Nxg5 {[%clk 0:00:26.9]} 30... Rxa1 {[%clk
0:00:34.6]} 31. Bxa1 {[%clk 0:00:24.9]} 31... Bxg5 {[%clk 0:00:33.8]} 32. bxa5
{[%clk 0:00:21.9]} 32... Nd7 {[%clk 0:00:20.2]} 33. Qxc6 {[%clk 0:00:20.9]}
33... Re3+ {[%clk 0:00:18.2]} 34. Kc2 {[%clk 0:00:21.5]} 34... Nf8 {[%clk
0:00:18]} 35. a6 {[%clk 0:00:20.6]} 35... Re2+ {[%clk 0:00:18.3]} 36. Kb1 {[%clk
0:00:19.8]} 36... Re1+ {[%clk 0:00:18]} 37. Ka2 {[%clk 0:00:20.2]} 37... Re2+
{[%clk 0:00:18.1]} 38. Bb2 {[%clk 0:00:20.8]} 38... Bc1 {[%clk 0:00:17.8]} 39.
Qxc1 {[%clk 0:00:20.2]} 1-0